fUSD/lending_fUSD_20240114
["ID","MTS","AMOUNT","RATE_DAILY","PERIOD"]
[311580204,1705253458116,-500.0,0.00030136,2]
[311580205,1705253458136,-553.88,0.00030136,2]
[311580206,1705253458147,-500.0,0.00030136,2]
[311580207,1705253458156,-500.0,0.00030136,2]
[311580208,1705253458166,-9834.08,0.00030136,2]
[311580209,1705253458177,-500.0,0.00030136,2]
[311580210,1705253458187,-500.0,0.00030136,2]
[311580211,1705253458197,-1469.82,0.00030136,2]
[311580212,1705253458208,-4096.77,0.00030136,2]
[311580213,1705253458218,-3904.92,0.00030136,2]
[311580214,1705253458228,-500.0,0.00030136,2]
[311580215,1705253458238,-500.0,0.00030136,2]
[311580216,1705253458248,-500.0,0.00030136,2]
[311580217,1705253458258,-2182.38,0.00030136,2]
[311580218,1705253458268,-500.0,0.00030136,2]
[311580219,1705253458278,-500.0,0.00030136,2]
[311580220,1705253458288,-659.35,0.00030136,2]
[311580221,1705253458297,-358.17,0.00030136,2]
[311580222,1705253458307,-1050.25,0.00030136,2]
[311580223,1705253458317,-4428.6,0.00030136,2]
[311580224,1705253458326,-592.11,0.00030136,2]
[311580225,1705253458336,-500.0,0.00030136,2]
[311580226,1705253458346,-500.0,0.00030136,2]
[311580227,1705253458355,-500.0,0.00030136,2]
[311580228,1705253458365,-1614.58,0.00030136,2]
[311580229,1705253458375,-500.0,0.00030136,2]
[311580230,1705253458388,-1920.78,0.00030136,2]
[311580231,1705253458398,-1485.84,0.00030136,2]
[311580232,1705253458408,-4709.18,0.00030136,2]
[311580233,1705253458418,-504.18,0.00030136,2]
[311580234,1705253458428,-500.0,0.00030136,2]
[311580235,1705253458438,-500.0,0.00030136,2]
[311580236,1705253458448,-529.07,0.00030136,2]
[311580237,1705253458458,-500.0,0.00030136,2]
[311580238,1705253458469,-500.0,0.00030136,2]
[311580239,1705253458480,-835.49,0.00030136,2]
[311580240,1705253458490,-2052.79,0.00030136,2]
[311580241,1705253458500,-2482.91,0.00030136,2]
[311580242,1705253458510,-500.0,0.00030136,2]
[311580243,1705253458524,-500.0,0.00030136,2]
[311580244,1705253458534,-500.0,0.00030136,2]
[311580245,1705253458543,-500.0,0.00030136,2]
[311580246,1705253458553,-1131.4,0.00030136,2]
[311580247,1705253458563,-500.0,0.00030136,2]
[311580248,1705253458572,-3791.64,0.00030136,2]
[311580249,1705253458582,-500.0,0.00030136,2]
[311580250,1705253458592,-595.14,0.00030136,2]
[311580251,1705253458601,-500.0,0.00030136,2]
[311580252,1705253458612,-795.74,0.00030136,2]
[311580253,1705253458622,-3400.98,0.00030136,2]
[311580254,1705253458637,-500.0,0.00030136,2]
[311580255,1705253458647,-1954.53,0.00030136,2]
[311580256,1705253458658,-1119.26,0.00030136,2]
[311580257,1705253458668,-907.16,0.00030136,2]
[311580258,1705253458679,-1537.92,0.00030136,2]
[311580259,1705253458689,-500.0,0.00030136,2]
[311580260,1705253458699,-2450.76,0.00030136,2]
[311580261,1705253458709,-2008.19,0.00030136,2]
[311580262,1705253458719,-500.0,0.00030136,2]
[311580263,1705253458729,-500.0,0.00030136,2]
[311580264,1705253458739,-500.0,0.00030136,2]
[311580265,1705253458750,-500.0,0.00030136,2]
[311580266,1705253458760,-500.0,0.00030136,2]
[311580267,1705253458771,-500.0,0.00030136,2]
[311580268,1705253458781,-548.28904384,0.00030136,2]
[311580269,1705253458792,-500.0,0.00030136,2]
[311580270,1705253458802,-3941.58,0.00030136,2]
[311580271,1705253458811,-770.54,0.00030136,2]
[311580272,1705253458822,-943.21,0.00030136,2]
[311580273,1705253458832,-500.0,0.00030136,2]
[311580274,1705253458842,-933.61,0.00030136,2]
[311580275,1705253458851,-5023.44,0.00030136,2]
[311580276,1705253458861,-500.0,0.00030136,2]
[311580277,1705253458871,-500.0,0.00030136,2]
[311580278,1705253458881,-1880.36,0.00030136,2]
[311580279,1705253458891,-1000.0,0.00030136,2]
[311580280,1705253458901,-500.0,0.00030136,2]
[311580281,1705253458910,-500.0,0.00030136,2]
[311580282,1705253458920,-761.62,0.00030136,2]
[311580283,1705253458930,-500.0,0.00030136,2]
[311580284,1705253458939,-13163.39,0.00030136,2]
[311580285,1705253458950,-1483.27,0.00030136,2]
[311580286,1705253458959,-658.81,0.00030136,2]
[311580287,1705253458970,-735.24,0.00030136,2]
[311580288,1705253458980,-500.0,0.00030136,2]
[311580289,1705253458990,-750.87,0.00030136,2]
[311580290,1705253459000,-1204.33,0.00030136,2]
[311580291,1705253459010,-9697.51,0.00030136,2]
[311580292,1705253459020,-378.37556676,0.00030136,2]
[311580293,1705253459029,-500.0,0.00030136,2]
[311580294,1705253459039,-1636.49,0.00030136,2]
[311580295,1705253459048,-1315.92,0.00030136,2]
[311580296,1705253459058,-1505.93,0.00030136,2]
[311580297,1705253459067,-2010.08,0.00030136,2]
[311580298,1705253459077,-500.0,0.00030136,2]
[311580299,1705253459087,-1206.52,0.00030136,2]
[311580300,1705253459097,-8615.04,0.00030136,2]
[311580301,1705253459106,-500.0,0.00030136,2]
[311580302,1705253459115,-500.0,0.00030136,2]
[311580303,1705253459129,-501.87035085,0.00030136,2]
[311580304,1705253459139,-614.86,0.00030136,2]
[311580305,1705253459149,-500.0,0.00030136,2]
[311580306,1705253459159,-500.0,0.00030136,2]
[311580307,1705253459169,-825.15,0.00030136,2]
[311580308,1705253459179,-1834.28,0.00030136,2]
[311580309,1705253459190,-500.0,0.00030136,2]
[311580310,1705253459199,-500.0,0.00030136,2]
[311580311,1705253459209,-500.0,0.00030136,2]
[311580312,1705253459219,-500.0,0.00030136,2]
[311580313,1705253459229,-1145.94,0.00030136,2]
[311580314,1705253459239,-611.49,0.00030136,2]
[311580315,1705253459249,-500.0,0.00030136,2]
[311580316,1705253459259,-712.81,0.00030136,2]
[311580317,1705253459270,-4694.17,0.00030136,2]
[311580318,1705253459280,-1189.13,0.00030136,2]
[311580319,1705253459290,-2026.26,0.00030136,2]
[311580320,1705253459300,-5287.62,0.00030136,2]
[311580321,1705253459310,-265.08120227,0.00030136,2]
[311580322,1705253459320,-1554.45,0.00030136,2]
[311580323,1705253459329,-500.0,0.00030136,2]
[311580324,1705253459339,-500.0,0.00030136,2]
[311580325,1705253459349,-2502.01,0.00030136,2]
[311580326,1705253459359,-500.0,0.00030136,2]
[311580327,1705253459368,-502.18273445,0.00030136,2]
[311580328,1705253459378,-1459.16,0.00030136,2]
[311580329,1705253459387,-500.0,0.00030136,2]
[311580330,1705253459397,-500.0,0.00030136,2]
[311580331,1705253459407,-1265.59,0.00030136,2]
[311580332,1705253459416,-628.84,0.00030136,2]
[311580333,1705253459427,-500.0,0.00030136,2]
[311580334,1705253459436,-500.0,0.00030136,2]
[311580335,1705253459446,-982.34,0.00030136,2]
[311580336,1705253459456,-1089.95,0.00030136,2]
[311580337,1705253459466,-1478.44,0.00030136,2]
[311580338,1705253459476,-929.68,0.00030136,2]
[311580339,1705253459486,-1523.3,0.00030136,2]
[311580340,1705253459496,-500.0,0.00030136,2]
[311580341,1705253459506,-2537.47,0.00030136,2]
[311580342,1705253459517,-500.0,0.00030136,2]
[311580343,1705253459528,-2107.37,0.00030136,2]
[311580344,1705253459538,-500.0,0.00030136,2]
[311580345,1705253459548,-511.95137431,0.00030136,2]
[311580346,1705253459557,-500.0,0.00030136,2]
[311580347,1705253459567,-4431.07,0.00030136,2]
[311580348,1705253459577,-500.0,0.00030136,2]
[311580349,1705253459587,-648.67,0.00030136,2]
[311580350,1705253459597,-278.70636052,0.00030136,2]
[311580351,1705253459607,-500.0,0.00030136,2]
[311580352,1705253459617,-500.0,0.00030136,2]
[311580353,1705253459630,-25742.46,0.00030136,2]
[311580354,1705253459640,-607.09,0.00030136,2]
[311580355,1705253459650,-817.06,0.00030136,2]
[311580356,1705253459660,-763.22,0.00030136,2]
[311580357,1705253459669,-2990.42,0.00030136,2]
[311580358,1705253459679,-500.0,0.00030136,2]
[311580359,1705253459689,-1123.37,0.00030136,2]
[311580360,1705253459698,-1034.34,0.00030136,2]
[311580361,1705253459708,-557.68119691,0.00030136,2]
[311580362,1705253459718,-6890.31,0.00030136,2]
[311580363,1705253459728,-5852.17,0.00030136,2]
[311580364,1705253459738,-500.0,0.00030136,2]
[311580365,1705253459748,-1622.0,0.00030136,2]
[311580366,1705253459758,-500.0,0.00030136,2]
[311580367,1705253459770,-500.0,0.00030136,2]
[311580368,1705253459780,-500.0,0.00030136,2]
[311580369,1705253459790,-1000.0,0.00030136,2]
[311580370,1705253459801,-1180.29,0.00030136,2]
[311580371,1705253459811,-2278.84,0.00030136,2]
[311580372,1705253459820,-2221.08,0.00030136,2]
[311580373,1705253459830,-713.07,0.00030136,2]
[311580374,1705253459840,-2431.42306933,0.00030136,2]
[311580375,1705253460808,-310.69693067,0.00030136,2]
[311580376,1705253460818,-159.97970553,0.00030136,2]
[311580377,1705253460834,-340.02029447,0.00030136,2]
[311580378,1705253460843,-1046.01,0.00030136,2]
[311580379,1705253460852,-568.96775053,0.00030136,2]
[311580380,1705253460867,-1993.91224947,0.00030136,2]
[311580381,1705253460876,-776.76,0.00030136,2]
[311580382,1705253460885,-388.79661735,0.00030136,2]
[311580383,1705253460894,-431.53113068,0.00030136,2]
[311580384,1705253460905,-218.75886932,0.00030136,2]
[311580385,1705253460914,-500.0,0.00030136,2]
[311580386,1705253460923,-1049.49,0.00030136,2]
[311580387,1705253460933,-1511.66,0.00030136,2]
[311580388,1705253460942,-500.0,0.00030136,2]
[311580389,1705253460951,-500.0,0.00030136,2]
[311580390,1705253460961,-1827.82,0.00030136,2]
[311580391,1705253460970,-1049.0,0.00030136,2]
[311580392,1705253460980,-500.0,0.00030136,2]
[311580393,1705253460989,-500.0,0.00030136,2]
[311580394,1705253460998,-1469.6,0.00030136,2]
[311580395,1705253461008,-1020.18,0.00030136,2]
[311580396,1705253461018,-500.0,0.00030136,2]
[311580397,1705253461027,-549.15,0.00030136,2]
[311580398,1705253461037,-500.0,0.00030136,2]
[311580399,1705253461046,-527.48,0.00030136,2]
[311580400,1705253461055,-570.15,0.00030136,2]
[311580401,1705253461065,-500.0,0.00030136,2]
[311580402,1705253461074,-500.0,0.00030136,2]
[311580403,1705253461083,-2991.54,0.00030136,2]
[311580404,1705253461093,-500.0,0.00030136,2]
[311580405,1705253461103,-4099.03,0.00030136,2]
[311580406,1705253461113,-500.0,0.00030136,2]
[311580407,1705253461122,-500.0,0.00030136,2]
[311580408,1705253461134,-500.0,0.00030136,2]
[311580409,1705253461145,-1035.07,0.00030136,2]
[311580410,1705253461154,-500.0,0.00030136,2]
[311580411,1705253461163,-1926.03,0.00030136,2]
[311580412,1705253461173,-1974.95,0.00030136,2]
[311580413,1705253461182,-671.48,0.00030136,2]
[311580414,1705253461191,-500.0,0.00030136,2]
[311580415,1705253461201,-500.0,0.00030136,2]
[311580416,1705253461212,-500.0,0.00030136,2]
[311580417,1705253461221,-500.0,0.00030136,2]
[311580418,1705253461231,-4315.18,0.00030136,2]
[311580419,1705253461240,-500.0,0.00030136,2]
[311580420,1705253461249,-678.73,0.00030136,2]
[311580421,1705253461259,-1216.46,0.00030136,2]
[311580422,1705253461269,-559.83,0.00030136,2]
[311580423,1705253461279,-678.36,0.00030136,2]
[311580424,1705253461288,-608.12,0.00030136,2]
[311580425,1705253461298,-502.04801814,0.00030136,2]
[311580426,1705253461307,-500.0,0.00030136,2]
[311580427,1705253461317,-500.0,0.00030136,2]
[311580428,1705253461326,-500.0,0.00030136,2]
[311580429,1705253461335,-500.0,0.00030136,2]
[311580430,1705253461344,-751.88311255,0.00030136,2]
[311580431,1705253461357,-315.79688745,0.00030136,2]
[311580432,1705253461366,-59.51578271,0.00030136,2]
[311580436,1705253638612,170.43,0.00029802,91]
[311580438,1705253933703,7948.21725179,0.00022102,2]
[311580439,1705254021523,855.86394758,0.00022102,2]
[311580440,1705254031890,-295.28510411,0.00022988,2]
[311580441,1705254031924,-758.41453335,0.00022989,2]
[311580442,1705254031958,-558.40855631,0.00022989,2]
[311580443,1705254031993,-711.93,0.00022999,2]
[311580444,1705254032028,-716.25,0.00022999,2]
[311580445,1705254032062,-150.0,0.00023,2]
[311580446,1705254032096,-19000.90173546,0.00023642,2]
[311580447,1705254032129,-710.88,0.00023643,2]
[311580448,1705254032172,-716.35,0.00023778,2]
[311580449,1705254032212,-735.78,0.00023936,2]
[311580450,1705254032262,-200.98944307,0.00024126,2]
[311580451,1705254032298,-735.38,0.00024127,2]
[311580452,1705254032335,-713.44,0.00024364,2]
[311580453,1705254032371,-737.73,0.00024642,2]
[311580454,1705254032408,-727.53,0.0002498,2]
[311580455,1705254032445,-717.06,0.00024998,2]
[311580456,1705254032481,-737.76,0.00024998,2]
[311580457,1705254032515,-730.79,0.00024999,2]
[311580458,1705254032554,-350.0,0.00025,3]
[311580459,1705254032589,-972.59669197,0.00025,2]
[311580460,1705254032604,-275.20016538,0.00025,2]
[311580461,1705254032614,-20.08493873,0.00025615,2]
[311580462,1705254032640,-497.30506127,0.00025615,2]
[311580463,1705254032650,-261.10947208,0.00026835,2]
[311580464,1705254032675,-558.40855631,0.00026835,2]
[311580465,1705254032695,-250.4935892,0.00026835,2]
[311580466,1705254032706,-201.87194842,0.00026836,2]
[311580467,1705254032717,-167.23848345,0.00026836,2]
[311580468,1705254032727,-92.32597893,0.00026837,2]
[311580469,1705254032754,-210.89317902,0.00026837,2]
[311580470,1705254032764,-505.35682098,0.00026838,2]
[311580471,1705254032776,-150.0,0.00026838,2]
[311580472,1705254032918,-927.64868269,0.00026838,2]
[311580473,1705254032928,-202.0,0.0002684,2]
[311580474,1705254032937,-400.0,0.00027,3]
[311580475,1705254032947,-2000.0,0.00027263,2]
[311580476,1705254032957,-182.44,0.00027263,2]
[311580477,1705254032966,-250.0,0.00027397,2]
[311580478,1705254032976,-250.0,0.00027397,2]
[311580479,1705254032985,-12558.66075885,0.00027511,2]
[311580480,1705254033006,-710.88,0.00027511,2]
[311580481,1705254033023,-716.35,0.00027511,2]
[311580482,1705254033043,-735.78,0.00027511,2]
[311580483,1705254033065,-200.98944307,0.00027511,2]
[311580484,1705254033081,-735.38,0.00027511,2]
[311580485,1705254033098,-713.44,0.00027511,2]
[311580486,1705254033110,-737.73,0.00027511,2]
[311580487,1705254033134,-727.53,0.00027511,2]
[311580488,1705254033155,-717.06,0.00027511,2]
[311580489,1705254033167,-737.76,0.00027511,2]
[311580490,1705254033198,-730.79,0.00027511,2]
[311580491,1705254033213,-350.0,0.00027511,2]
[311580492,1705254033257,-1247.79685735,0.00027511,2]
[311580496,1705254513193,289.15623828,0.00030136,120]
[311580505,1705254632219,-295.28510411,0.00022995,2]
[311580507,1705254632230,-501.09834726,0.00022996,2]
[311580509,1705254632239,-562.11654863,0.00022996,2]
[311580514,1705254632293,-7652.70891006,0.00022996,2]
[311580515,1705254632304,-612.26946522,0.00022996,2]
[311580527,1705254632458,-950.07738773,0.00022996,2]
[311580530,1705254632470,-633.11664535,0.00022996,2]
[311580532,1705254632481,-546.69999,0.00022996,2]
[311580534,1705254632493,-687.257,0.00022996,2]
[311580536,1705254632505,-499.6,0.00022996,2]
[311580537,1705254632521,-301.48,0.00022996,2]
[311580538,1705254632533,-762.71,0.00022996,2]
[311580539,1705254632545,-440.0,0.00022996,2]
[311580540,1705254632557,-406.76,0.00022996,2]
[311580541,1705254632569,-532.8,0.00022996,2]
[311580543,1705254632585,-444.0,0.00022996,2]
[311580547,1705254632614,-3755.1079601,0.00022996,2]
[311580548,1705254632627,-214.19782837,0.00022996,2]
[311580549,1705254632636,-6433.71502651,0.00022998,2]
[311580550,1705254632646,-4623.14199213,0.00022999,2]
[311580551,1705254632656,-165.28,0.00023,2]
[311580552,1705254632666,-200.98944307,0.00024,2]
[311580553,1705254632675,-167.23848345,0.00025,2]
[311580554,1705254632684,-1070.01161759,0.00025,2]
[311580555,1705254632694,-201.87194842,0.00025,2]
[311580556,1705254632704,-1583.00550367,0.00026107,2]
[311580557,1705254632713,-150.0,0.0002611,2]
[311580558,1705254632722,-525.3,0.00026176,2]
[311580559,1705254632731,-1000.0,0.00027574,2]
[311580560,1705254632741,-202.0,0.000277,2]
[311580561,1705254632750,-906.22,0.0002791,2]
[311580562,1705254632759,-165.18,0.00027934,2]
[311580563,1705254632769,-150.0,0.00027955,2]
[311580564,1705254632779,-8405.15,0.00027978,2]
[311580565,1705254632788,-163.97,0.00027979,2]
[311580566,1705254632798,-202.89143555,0.00028038,2]
[311580567,1705254632807,-150.0,0.00028039,2]
[311580568,1705254632817,-250.0,0.0002804,2]
[311580569,1705254632827,-2269.85,0.0002804,2]
[311580570,1705254632837,-157.73,0.00028047,2]
[311580571,1705254632846,-156.0,0.00028051,2]
[311580572,1705254632859,-2000.0,0.00028051,2]
[311580573,1705254632869,-205.0,0.00028078,2]
[311580574,1705254632879,-250.0,0.00028086,2]
[311580575,1705254632889,-1560.15,0.00028145,2]
[311580576,1705254632899,-1975.51,0.00028273,2]
[311580577,1705254632908,-2221.898,0.0002833,2]
[311580578,1705254632918,-179.29,0.00028331,2]
[311580579,1705254632927,-169.95,0.00028366,2]
[311580580,1705254632937,-525.3,0.0002844,2]
[311580581,1705254632946,-164.62,0.00028498,2]
[311580582,1705254632956,-202.0,0.0002856,2]
[311580583,1705254632966,-167.41,0.00028589,2]
[311580584,1705254632975,-179.29,0.00028611,2]
[311580585,1705254633102,-322.6212628,0.00028629,2]
[311580586,1705254633111,-157.73,0.00028748,2]
[311580587,1705254633120,-202.61736364,0.00028787,6]
[311580588,1705254633130,-831.08,0.00028787,2]
[311580589,1705254633139,-169.95,0.00028859,2]
[311580590,1705254633148,-906.22,0.00028889,2]
[311580591,1705254633157,-179.29,0.00028892,2]
[311580592,1705254633166,-474.00607165,0.000289,2]
[311580593,1705254633175,-460.37821886,0.00028939,2]
[311580594,1705254633188,-370.70178114,0.00028939,2]
[311580595,1705254633197,-205.87179172,0.00029,2]
[311580596,1705254633208,-746.41878368,0.00029,2]
[311580597,1705254633220,-610.18376816,0.00029,2]
[311580598,1705254633243,-400.0,0.00029,2]
[311580599,1705254633256,-1037.52565644,0.00029,2]
[311580600,1705254633265,-935.30880124,0.0002901,2]
[311580601,1705254633291,-604.7260143,0.0002901,2]
[311580602,1705254633303,-1459.96518446,0.0002901,2]
[311580603,1705254633313,-3000.0,0.0002902,2]
[311580604,1705254633321,-1912.73012638,0.0002903,2]
[311580605,1705254633333,-870.25017859,0.0002903,2]
[311580610,1705254638574,-202.89143555,0.00028,2]
[311580611,1705254638585,-217.01969503,0.0002903,2]
[311580612,1705254638595,-3000.0,0.0002904,2]
[311580613,1705254638604,-3000.0,0.0002905,2]
[311580614,1705254638613,-3000.0,0.0002906,2]
[311580615,1705254638622,-3000.0,0.0002907,2]
[311580616,1705254638631,-4216.9794,0.0002908,2]
[311580617,1705254638640,-831.08,0.0002909,2]
[311580618,1705254638649,-179.29,0.00029172,2]
[311580619,1705254638658,-787.76004236,0.0002923,2]
[311580620,1705254638667,-831.08,0.00029242,2]
[311580621,1705254638676,-169.95,0.00029352,2]
[311580622,1705254638685,-831.08,0.00029393,2]
[311580623,1705254638694,-343.35768817,0.000294,2]
[311580624,1705254638704,-343.35768817,0.000294,2]
[311580625,1705254638713,-343.35768817,0.000294,2]
[311580626,1705254638722,-343.35768817,0.000294,2]
[311580627,1705254638731,-343.35768817,0.000294,2]
[311580628,1705254638740,-343.35768817,0.00029409,2]
[311580629,1705254638750,-202.0,0.0002941,2]
[311580630,1705254638759,-155.0,0.0002941,2]
[311580631,1705254638768,-151.03074467,0.0002941,2]
[311580632,1705254638778,-3000.0,0.0002941,2]
[311580633,1705254638787,-3000.0,0.0002941,2]
[311580634,1705254638797,-4878.6747,0.0002941,2]
[311580635,1705254638807,-300.0,0.00029429,2]
[311580636,1705254638817,-343.35768817,0.00029443,2]
[311580637,1705254638826,-157.73,0.0002945,2]
[311580638,1705254638836,-179.29,0.00029453,2]
[311580639,1705254638845,-218.73743945,0.00029475,2]
[311580640,1705254638855,-343.35768817,0.00029512,2]
[311580641,1705254638865,-343.35768817,0.00029512,2]
[311580642,1705254638874,-343.35768817,0.00029512,2]
[311580643,1705254638884,-343.35768817,0.00029512,2]
[311580644,1705254638893,-343.35768817,0.00029512,2]
[311580645,1705254638903,-343.35768817,0.00029512,2]
[311580646,1705254638912,-343.35768817,0.00029512,2]
[311580647,1705254638922,-343.35768817,0.00029512,2]
[311580648,1705254638931,-343.35768817,0.00029512,2]
[311580649,1705254638940,-343.35768817,0.00029512,2]
[311580650,1705254638950,-343.35768817,0.00029512,2]
[311580651,1705254638959,-343.35768817,0.00029512,2]
[311580652,1705254638970,-343.35768817,0.00029512,2]
[311580653,1705254638979,-343.35768817,0.00029512,2]
[311580654,1705254638989,-353.72680467,0.00029523,2]
[311580655,1705254638998,-21665.70131078,0.00029523,2]
[311580657,1705254639007,-326.72373977,0.00029523,2]
[311580659,1705254639016,-158.59380943,0.00029523,2]
[311580661,1705254639025,-343.35768817,0.00029535,2]
[311580663,1705254639034,-831.08,0.00029545,2]
[311580665,1705254639043,-150.0,0.00029575,2]
[311580667,1705254639052,-218.73743943,0.00029599,2]
[311580669,1705254639061,-343.35768817,0.00029611,2]
[311580671,1705254639070,-343.35768817,0.00029611,2]
[311580673,1705254639079,-343.35768817,0.00029611,2]
[311580675,1705254639090,-343.35768817,0.00029611,2]
[311580677,1705254639099,-343.35768817,0.00029611,2]
[311580679,1705254639108,-343.35768817,0.00029611,2]
[311580681,1705254639117,-343.35768817,0.00029611,2]
[311580683,1705254639127,-343.35768817,0.00029611,2]
[311580685,1705254639136,-343.35768817,0.00029611,2]
[311580687,1705254639145,-343.35768817,0.00029611,2]
[311580689,1705254639154,-343.35768817,0.00029611,2]
[311580691,1705254639163,-343.35768817,0.00029611,2]
[311580693,1705254639173,-343.35768817,0.00029611,2]
[311580695,1705254639182,-343.35768817,0.00029611,2]
[311580697,1705254639191,-343.35768817,0.00029611,2]
[311580699,1705254639200,-343.35768817,0.00029613,2]
[311580701,1705254639209,-343.35768817,0.00029613,2]
[311580703,1705254639218,-343.35768817,0.00029613,2]
[311580705,1705254639227,-343.35768817,0.00029613,2]
[311580707,1705254639237,-343.35768817,0.00029613,2]
[311580709,1705254639246,-343.35768817,0.00029613,2]
[311580711,1705254639255,-150.0,0.00029619,2]
[311580713,1705254639264,-2111.8184,0.00029621,2]
[311580715,1705254639273,-20117.4608,0.00029621,2]
[311580717,1705254639282,-549.1215,0.00029623,2]
[311580719,1705254639291,-4570.4174,0.00029623,3]
[311580721,1705254639300,-646.1423,0.00029623,2]
[311580723,1705254639310,-3455.2444,0.00029623,2]
[311580725,1705254639319,-522.45468481,0.00029623,2]
[311580727,1705254639327,-343.35768817,0.00029662,2]
[311580729,1705254639338,-556.94521149,0.00029672,2]
[311580731,1705254639348,-831.08,0.00029696,2]
[311580733,1705254639358,-343.35768817,0.00029703,2]
[311580735,1705254639367,-343.35768817,0.00029703,2]
[311580737,1705254639376,-343.35768817,0.0002971,2]
[311580739,1705254639385,-343.35768817,0.0002971,2]
[311580741,1705254639394,-343.35768817,0.0002971,2]
[311580743,1705254639404,-343.35768817,0.0002971,2]
[311580745,1705254639413,-343.35768817,0.00029711,2]
[311580747,1705254639422,-343.35768817,0.00029711,2]
[311580749,1705254639431,-343.35768817,0.00029711,2]
[311580751,1705254639440,-343.35768817,0.00029711,2]
[311580753,1705254639449,-343.35768817,0.00029711,2]
[311580755,1705254639458,-343.35768817,0.00029711,2]
[311580757,1705254639467,-343.35768817,0.00029711,2]
[311580759,1705254639476,-343.35768817,0.00029711,2]
[311580761,1705254639485,-343.35768817,0.00029711,2]
[311580763,1705254639494,-343.35768817,0.00029711,2]
[311580765,1705254639503,-343.35768817,0.00029711,2]
[311580767,1705254639512,-343.35768817,0.00029711,2]
[311580769,1705254639521,-343.35768817,0.00029711,2]
[311580771,1705254639530,-343.35768817,0.00029711,2]
[311580773,1705254639539,-343.35768817,0.00029711,2]
[311580775,1705254639549,-343.35768817,0.00029711,2]
[311580777,1705254639558,-343.35768817,0.00029711,2]
[311580779,1705254639570,-343.35768817,0.00029711,2]
[311580781,1705254639579,-343.35768817,0.00029711,2]
[311580783,1705254639590,-343.35768817,0.00029711,2]
[311580785,1705254639599,-343.35768817,0.00029711,2]
[311580787,1705254639608,-343.35768817,0.00029711,2]
[311580789,1705254639617,-343.35768817,0.00029711,2]
[311580791,1705254639626,-343.35768817,0.00029711,2]
[311580793,1705254639635,-343.35768817,0.00029711,2]
[311580795,1705254639644,-343.35768817,0.00029711,2]
[311580796,1705254639653,-343.35768817,0.00029711,2]
[311580797,1705254639662,-343.35768817,0.00029711,2]
[311580798,1705254639672,-343.35768817,0.00029711,2]
[311580799,1705254639681,-343.35768817,0.00029711,2]
[311580800,1705254639690,-343.35768817,0.00029711,2]
[311580801,1705254639699,-2266.22379364,0.00029713,2]
[311580802,1705254639724,-162.77370636,0.00029713,2]
[311580804,1705254639733,-240.92646363,0.00029713,2]
[311580806,1705254639745,-182.04353637,0.00029713,2]
[311580808,1705254639753,-72.77286789,0.00029713,2]
[311580810,1705254639765,-270.58482028,0.00029713,2]
[311580812,1705254639774,-343.35768817,0.00029713,2]
[311580814,1705254639783,-137.53105256,0.00029713,2]
[311580816,1705254639795,-205.82663561,0.00029713,2]
[311580818,1705254639804,-343.35768817,0.00029713,2]
[311580820,1705254639813,-36.97160625,0.00029713,2]
[311580823,1705254639825,-306.38608192,0.00029713,2]
[311580824,1705254639835,-156.70530927,0.00029713,4]
[311580827,1705254639846,-155.0,0.00029719,2]
[311580829,1705254639855,-2108.96929926,0.0002972,2]
[311580831,1705254639864,-252.65442073,0.0002972,2]
[311580833,1705254639872,-2294.55917338,0.0002972,2]
[311580835,1705254639881,-234.89781562,0.0002972,2]